{"text_format":"3","workbook":"xlsx","n_sheets":2,"sheets":["PT SPEC","BID SHEET"],"read":"whole","date_system":"1900"}

{"sheet":"PT SPEC","index":0,"n_rows":24,"n_cols":8,"rows_kept":24}
["Item NO.","Item","Style ","Printing Requirements","Brand Name or Equivalent","Color","Size","Estimate Yearly Quantity"]
[1,"SHORT SLEEVE T-SHIRTS","Crew Neck style, 5-6.5oz. 100% cotton, preshrunk t-shirt"," Silk screened department patch on left breast (3.5” X 4”) white and gold ink.  Silk Screened logo “ACFD” on back (4” tall x 3” wide letters) white and gold ink.  T-shirts shall be screen printed with the Arlington County Fire Department abbreviation “ACFD” logo on the back and Department patch on left breast.","Hanes Beefy T Style #6307, Gildan Style #2000, Jerzees Style# 363MR, ANVIL Style #780","Navy, Red, Black and Pink are required","Small through 4X",1200]
[2,"FLAME RESISTANT BASE LAYER T-SHIRT","A balance of Lenzing FR® and other high performance fibers to wick moisture away from the skin yet dry quickly.  A fabric with Para-aramid (DuPont™ Kevlar® or Tejin Twaron®) and meta-aramid (DuPont™ Nomex® or Tejinconex®)     fiber for improved strength and durability.  A fabric made of 100% solution-dyed fibers to provide the best color retention after wash.  A fabric that is inherently flame resistant and does not burn, melt, or drip.  Crew Neck style, 5.5 oz. minimum. Modacrylic based T-shirts will not be accepted.","T-shirts shall be screen printed with the Arlington County Fire.  Department abbreviation “ACFD” logo on the back and Department patch on left breast.  Silk screened department patch on left breast (3.5” X 4”) white and gold ink.  Silk Screened logo “ACFD” on back (4” tall x 3” wide letters) white and gold ink. No manu facturer logos shall interfere with department logo placement. Manufacturer logos shall not be affixed on the outside of the garment. Must meet be NFPA 70E compliant. https://ohsonline.com/Articles/2020/09/01/Understanding-NFPA-70E-and-NFPA-2112-FF-Standards.aspx.  Must meet Natick military research standard","100% Sigma Knit T-Shirt. Modacrylic based T-shirts will not be accepted.","Navy are required","Small through 5X",1200]
[3,"LONG SLEEVE T-SHIRTS","Crew Neck style, 5-6.5 oz. 100% cotton, preshrunk t-shirt","Silk screened department patch on left breast (3.5” X 4”) white and gold ink.  Silk Screened logo “ACFD” on back (4” tall x 3” wide letters) white and gold ink. T-shirts shall be screen printed with the Arlington County Fire Department abbreviation “ACFD” logo on the back and Department patch on left breast.","Hanes Beefy T style #6319, Gildan Style #2400, Jerzees Style #363LSR, ANVIL style # 784","Navy, Red, Black and Pink are required","Small through 4X",400]
[4,"SHORT SLEEVE BIG AND TALL T-SHIRTS","Crew Neck style, 5-6.5 oz. 100% cotton, preshrunk t-shirt","Silk screened department patch on left breast (3.5” X 4”) white and gold ink required.  Silk Screened logo “ACFD” on back (4” tall x 3” wide letters) white and gold ink required.  T-shirts shall be screen printed with the Arlington County Fire Department abbreviation “ACFD” logo on the back and Department patch on left breast. ","Hanes Beefy T style #24737, Big Top T’s","Navy, Red, Black and Pink are required","Large T through 4XT",400]
[5,"LONG SLEEVE BIG AND TALL T-SHIRTS","Crew Neck style, 5-6.5 oz. 100% cotton, preshrunk t-shirt","Silk screened department patch on left breast (3.5” X 4”) white and gold ink required.  Silk Screened logo “ACFD” on back (4” tall x 3” wide letters) white and gold ink required.  T-shirts shall be screen printed with the Arlington County Fire Department abbreviation “ACFD” logo on the back and Department patch on left breast.","Hanes Beefy T style #24737, Big Top T’s","Navy, Red, Black and Pink are required","Large T through 4XT",400]
[6,"SHORTS","100% cotton, 13 inch or “long” fit, with pockets, internal drawstring, and ability to place ACFD logo at left hem or side pocket","White and gold ink.  Shall be printed with “ACFD” on left thigh reading from left to right in letters that are 1.5 inches tall","Champion Style: CHB301, Big Top T’s","Navy are required","3X through 6X",800]
[7,"SHORTS BIG AND TALL","100% cotton or poly/cotton blend, 13 inch or “long” fit, with pockets, internal drawstring, and ability to place ACFD logo at left hem or side pocket.","White and gold ink.  Shall be printed with “ACFD” on left thigh reading from left to right in letters that are 1.5 inches tall.  Shall be printed with “ACFD” on left thigh reading from left to right in letters that are 1.5 inches tall","Champion Style: CHB301, Big Top T’s","Navy are required","3X through 6X",200]
[8,"SHORT MESH"," 100% polyester mesh or poly cotton blend, 13 inch or “long” fit, with pockets, internal drawstring, and ability to place ACFD logo at left hem or side pocket.","White and gold ink.  Shall be printed with “ACFD” on left thigh reading from left to right in letters that are 1.5 inches tall","Gildan Style #44S30, Champion Style # #CS162","Navy are required","Small through 3X",800]
[9,"SWEATSHIRT",".3 oz. Crew Neck, Cotton pull over, ribbed cuffs and waist","Silk screened department patch on left breast (3.5” X 4”) white and gold ink.  Silk Screened logo “ACFD” on back (4” tall x 3” wide letters) white and gold ink. T-shirts shall be screen printed with the Arlington County Fire Department abbreviation “ACFD”.  Silk Screened logo “ACFD” on back (4” tall x 3” wide letters) white and gold ink.  Shall be screen printed with the Arlington County Fire Department abbreviation “ACFD” (4” tall x 3” wide letters) logo on the back and Silk screened department patch on left breast (3.5” X 4) white and gold ink.","Hanes style #HP160 (50/50 blend sm-5x), Hanes style #HF260 (90/10 blend sm-3x), Gildan (50/50 blend sizes Small through 3x), Jerzees Style #4662MR \n(50/50 blend sizes Small though 4x), ANVIL style #71000\n(75/25 blend sizes Small through 3x)","Dark Navy, Red, and Pink are required","Adult sizes Small through 5XL",400]
[10,"SWEATSHIRT TALL","9.3 oz. Crew Neck, Cotton pull over, ribbed cuffs and waist","Shall be screen printed with the Arlington County Fire Department abbreviation “ACFD” (4” tall x 3” wide letters) logo on the back.  Silk screened department patch on left breast (3.5” X 4) white and gold ink.  Shall be screen printed with the Arlington County Fire Department abbreviation “ACFD” (4” tall x 3” wide letters) logo on the back and Silk screened department patch on left breast (3.5” X 4) white and gold ink","Big Top T’s, ","Dark Navy, Red, and Pink are required","Adult sizes Large T through 5XLT",200]
[11,"SWEATPANT- ELASTIC CUFF","9.3 oz., double stitched, deep side pockets, no-lose drawstring elastic cuff and waistband","Shall be printed with “ACFD” (stacked down the leg) Letters shall be at least 6 inches tall in white or gold ink","Champion style #CP7310, Gildan Style #18100 (size sm-2X), Jerzees Style #973MR(sm-3X), ANVIL style","Navy are required","Small through 3X",275]
[12,"SWEATPANT BIG AND TALL- ELASTIC CUFF","9.3 oz., double stitched, deep side pockets, no-lose drawstring elastic cuff and waistband"," Shall be printed with “ACFD” (stacked down the leg) Letters shall be at least 6 inches tall in white or gold ink","Champion style # CHB306"," Navy are required","3x thru 6x and 2XLT thru 4XLT",275]
[13,"SWEATPANT- OPEN CUFF","9.3 oz., double stitched, deep side pockets, no-lose drawstring elastic cuff and waistband","Shall be printed with “ACFD” (stacked down the leg) Letters shall be at least 6 inches tall in white or gold ink.  ","Hanes style #24523 (sizes sm-2x), Jerzees Style#974MPR(sm-3x), Champion Style #CP7309, Gildan style #","Navy are required","Small through 3X",60]
[]
[{"$nulls":3},"SECTION 2 Embroidery"]
[14,"BASEBALL HATS","Flex fit, Cotton Twill, 6-panel with cloth sweatband. Stiff brim, and stand up front","Shall have directly embroidered in to the garment “ACFD” ” 1.5 to 2” high (the biggest that fits) on front in two colors, red letters with white outline.","Yupoong flex fit Style # #6530 color # 19-3925, Yupoong Style #6277xxl color # 19-4013, Yupoong Flex Fit Delta color #19-4023","Dark Navy, Red, and Pink are required","S/M, L/XL, XL/2X",600]
[15,"WINTER KNIT HATS","12”, Made of 100% Hypoallergenic Acrylic, Knit, Relaxed Fit, Low Crown, 3” folding cuff","Shall have directly embroidered in to the garment “ACFD” 1.5” to 2” tall on front in two colors, red letters with white outline.","Yupoong 1501 KC color 19-4024 TPX, Port and Company, Port Authority","Dark Navy,                                         *We reserve the right to change the colors to meet our needs (ie SWAT Medic HATS and Bomb team hats)","One size fits all",300]
[16,"WINTER FLEECE HATS","7.5 inch, 12.5 oz. fleece","Shall have directly embroidered in to the garment “ACFD” 1.5 to 2“ high (the biggest that fits) on front in two colors, red letters with white outline.","Yupoong #2006 color #19-4024TPX, Port and Company C918, Port Authority","Dark Navy","One size fits all",300]
[17,"POLO SHIRTS- MEN- DRI-FIT","Dri-FIT fabric, Fold-over collar. Button placket, Ergonomic flat seam construction to minimize chafing, Machine washable","Shall be embroidered with either an outline of the ACFD Badge (1 to 3 colors) or full 6 color ACFD badge (3 1/8th” x 2 3/8th”) with Arlington County Fire Department underneath badge on the left breast and the person’s name on the right breast","Nike, Champion, Port Authority","Hi visibility colors, as well as Dark Navy, Red, Grey, and Black are required","Men’s Small through 4x",75]
[18,"POLO SHIRTS- MENS- BIG AND TALL","100% cotton, Fold-over collar. Button placket, Ergonomic flat seam construction to minimize chafing, Machine washable"," Shall be embroidered with either an outline of the ACFD Badge (1 to 3 colors) or full 6 color ACFD badge (3 1/8th” x 2 3/8th”) on the left breast and the person’s name on the right breast in 14mm franklin gothic medium condensed font.","Big Top T’s","Dark Navy, Red, Grey, and Black are required","LargeT thru 5XT",50]
[19,"POLO SHIRTS-WOMENS","100% cotton, 7-oz., three buttons clean-finished placket, welt collar and cuffs, double-needle hem","Shall be embroidered with either an outline of the ACFD Badge (1 to 3 colors) or full 6 color ACFD badge (3 1/2” x 3”) on the left breast and the person’s name or name and job title on the right breast","Hanes, Dickies, Port and Company, Port Authority","Dark Navy, Red, Grey, and Black are required","Women’s Small through 2x",25]
[20,"POLO SHIRT-MEN'S ","100% cotton, Fold-over collar. Button placket, Ergonomic flat seam construction to minimize chafing, Machine washable","Shall be embroidered with either an outline of the ACFD Badge (1 to 3 colors) or full 6 color ACFD badge (3 1/8th” x 2 3/8th”) with Arlington County Fire Department underneath badge on the left breast and the person’s name on the right breast.","Nike, Champion, Port Authority, 24-7 Series Tru-Spec Polo, Horace Small Special Ops Polo","Dark Navy, Red, Grey, and Black","Men’s Small through 4X",50]
[21,"NAME TAPES","Name tapes shall be 1” wide","Shall be embroidered on military style name tape in Franklin Gothic Medium Condensed regular font size 18 MM.  Unit price should consist of per name/rank",null,"Dark Navy twill, Black Twill and OD Green webbing are required","1 inch wide",2000]

{"sheet":"BID SHEET","index":1,"n_rows":30,"n_cols":5,"rows_kept":30,"merged":[[2,0,2,1]]}
["22-FIR-ITB-251 PT Uniforms- Bid Sheet"]
[]
["Any Bidder who enters a zero (0), leaves blank, or uses characters on a pricing blank may be deemed nonresponsive.  Award will be made to the lowest responsive and responsible Bidder based on total extended price, and only one Bidder will receive a contract award.  Prices quoted must include all shipping, handling and delivery costs."]
[]
["Item NO.","Items Section 1- Printing","Estimate Yearly Quantity","Unit Price","Total Extended Price"]
[1,"SHORT SLEEVE T-SHIRTS",1200,{"v":0,"d":"$0.00"},{"$f":"C6*D6","v":{"v":0,"d":"$0.00"}}]
[2,"FLAME RESISTANT BASE LAYER T-SHIRT",1200,{"v":0,"d":"$0.00"},{"v":0,"d":"$0.00"}]
[3,"LONG SLEEVE T-SHIRTS",400,{"v":0,"d":"$0.00"},{"v":0,"d":"$0.00"}]
[4,"SHORT SLEEVE BIG AND TALL T-SHIRTS",400,{"v":0,"d":"$0.00"},{"v":0,"d":"$0.00"}]
[5,"LONG SLEEVE BIG AND TALL T-SHIRTS",400,{"v":0,"d":"$0.00"},{"v":0,"d":"$0.00"}]
[6,"SHORTS",800,{"v":0,"d":"$0.00"},{"v":0,"d":"$0.00"}]
[7,"SHORTS BIG AND TALL",200,{"v":0,"d":"$0.00"},{"v":0,"d":"$0.00"}]
[8,"SHORT MESH",800,{"v":0,"d":"$0.00"},{"v":0,"d":"$0.00"}]
[9,"SWEATSHIRT",400,{"v":0,"d":"$0.00"},{"v":0,"d":"$0.00"}]
[10,"SWEATSHIRT TALL",200,{"v":0,"d":"$0.00"},{"v":0,"d":"$0.00"}]
[11,"SWEATPANT- ELASTIC CUFF",275,{"v":0,"d":"$0.00"},{"v":0,"d":"$0.00"}]
[12,"SWEATPANT BIG AND TALL- ELASTIC CUFF",275,{"v":0,"d":"$0.00"},{"v":0,"d":"$0.00"}]
[13,"SWEATPANT- OPEN CUFF",60,{"v":0,"d":"$0.00"},{"v":0,"d":"$0.00"}]
[null,"Section 1 TOTAL",null,{"v":0,"d":"$0.00"},{"$f":"SUM(E6:E18)","v":{"v":0,"d":"$0.00"}}]
[null,"Section 2- Embroidery"]
[14,"BASEBALL HATS",600,{"v":0,"d":"$0.00"},{"$f":"C21*D21","v":{"v":0,"d":"$0.00"}}]
[15,"WINTER KNIT HATS",300,{"v":0,"d":"$0.00"},{"v":0,"d":"$0.00"}]
[16,"WINTER FLEECE HATS",300,{"v":0,"d":"$0.00"},{"v":0,"d":"$0.00"}]
[17,"POLO SHIRTS- MEN- DRI-FIT",75,{"v":0,"d":"$0.00"},{"v":0,"d":"$0.00"}]
[18,"POLO SHIRTS- MENS- BIG AND TALL",50,{"v":0,"d":"$0.00"},{"v":0,"d":"$0.00"}]
[19,"POLO SHIRTS-WOMENS",25,{"v":0,"d":"$0.00"},{"v":0,"d":"$0.00"}]
[20,"POLO SHIRT-MEN'S ",50,{"v":0,"d":"$0.00"},{"v":0,"d":"$0.00"}]
[21,"NAME TAPES",2000,{"v":0,"d":"$0.00"},{"v":0,"d":"$0.00"}]
[null,"Section 2 Total",null,null,{"$f":"SUM(E21:E28)","v":{"v":0,"d":"$0.00"}}]
[null,"Section 1 & 2 Total",null,null,{"$f":"SUM(E19+E29)","v":{"v":0,"d":"$0.00"}}]